bitfinex-derivatives/quotes_SOLF0:USTF0_20250706
["timestamp","ask_amount","ask_price","bid_price","bid_amount"]
[1751781182267,4.72957551,147.04,147.02,9.16649404]
[1751781182470,6.7989,147.05,147.02,9.16649404]
[1751781182767,4.72956858,147.04,147.02,9.16649404]
[1751781182966,6.7989,147.05,147.02,9.16649404]
[1751781183163,4.72956858,147.04,147.03,6.7996]
[1751781183569,4.72956858,147.04,147.02,2.36649404]
[1751781183769,6.7989,147.05,147.02,2.36649404]
[1751781183969,4.71836616,147.04,147.02,2.36649404]
[1751781184171,6.7989,147.05,147.02,2.36649404]
[1751781184372,4.71850201,147.04,147.02,2.36649404]
[1751781184667,6.7989,147.05,147.02,9.16639404]
[1751781184868,4.71850201,147.04,147.02,9.16639404]
[1751781185071,6.7989,147.05,147.02,9.16639404]
[1751781185268,13.35611807,147.04,147.02,9.16639404]
[1751781185473,4.71865713,147.03,147.02,9.16639404]
[1751781191978,6.7989,147.05,147.02,9.16639404]
[1751781192179,13.32682423,147.04,147.02,9.16639404]
[1751781192379,4.69667468,147.03,147.02,9.16639404]
[1751781201277,4.69667468,147.03,147.02,9.16595684]
[1751781203382,4.69667468,147.03,147.02,6.7999]
[1751781203588,4.69667468,147.03,147.02,9.16595684]
[1751781207388,4.69667468,147.03,147.02,9.16606859]
[1751781209391,9.1257,147.07,147.04,6.799]
[1751781209586,9.1257,147.07,147.02,2.36616859]
[1751781209587,20.51399068,147.06,146.99,7.0508]
[1751781209792,58.63429417,147.09,147.05,2.3650321]
[1751781209986,20.51619112,147.08,147.07,2.3650321]
[1751781210784,20.51323943,147.08,147.07,2.3650321]
[1751781211289,15.73747352,147.08,147.07,2.3650321]
[1751781212092,22.53477352,147.08,147.06,2.3650321]
[1751781212393,4.72908759,147.07,147.06,2.3650321]
[1751781214788,20.19501699,147.07,147.05,2.3650321]
[1751781214996,4.72908759,147.06,147.05,2.3650321]
[1751781217392,6.7977,147.07,147.05,2.3650321]
[1751781217596,4.75779972,147.06,147.05,2.3650321]
[1751781223099,6.7977,147.07,147.05,2.3650321]
[1751781223301,4.74958251,147.06,147.05,2.3650321]
[1751781224402,4.74940597,147.06,147.05,2.3650321]
[1751781224904,4.74940597,147.06,147.05,9.1637321]
[1751781225803,6.7975,147.08,147.05,9.1637321]
[1751781226007,4.74959555,147.07,147.05,9.1637321]
[1751781226303,6.7975,147.08,147.05,9.1637321]
[1751781226502,4.74927834,147.07,147.05,9.1637321]
[1751781226706,6.7975,147.08,147.05,9.1637321]
[1751781226902,4.74927834,147.07,147.05,9.1637321]
[1751781227103,6.7975,147.08,147.05,9.1637321]
[1751781227303,4.74899156,147.07,147.05,9.1637321]
[1751781227507,6.7975,147.08,147.05,9.1637321]
[1751781227706,4.74899156,147.07,147.05,9.1637321]
[1751781227909,6.7975,147.08,147.05,9.1637321]
[1751781228106,4.74899156,147.07,147.05,9.1637321]
[1751781228401,67.79632627,147.09,147.06,2.3650321]
[1751781228606,13.39380207,147.08,147.06,2.3650321]
[1751781228807,4.74873299,147.07,147.06,2.3650321]
[1751781230310,65.43129417,147.09,147.06,9.1632321]
[1751781230608,13.39277464,147.08,147.06,9.1632321]
[1751781230813,4.74829347,147.07,147.06,9.1632321]
[1751781232312,4.74829347,147.07,147.06,2.3650321]
[1751781232812,6.7973,147.08,147.06,2.3650321]
[1751781233616,4.74813694,147.07,147.06,2.3650321]
[1751781234513,4.74814822,147.07,147.05,9.1635321]
[1751781234714,6.7978,147.07,147.05,9.1635321]
[1751781235013,4.74790779,147.06,147.05,9.1635321]
[1751781235213,4.74790779,147.06,147.05,6.7985]
[1751781235414,4.74790779,147.06,147.04,9.1639321]
[1751781235615,6.7978,147.07,147.04,9.1639321]
[1751781235812,4.748054,147.06,147.04,9.1639321]
[1751781236114,6.7978,147.07,147.04,9.1639321]
[1751781236307,4.74822272,147.06,147.04,9.1639321]
[1751781236506,6.7978,147.07,147.04,9.1639321]
[1751781236812,4.74822272,147.06,147.04,9.1639321]
[1751781237111,6.7978,147.07,147.04,9.1639321]
[1751781237311,4.74841493,147.06,147.04,9.1639321]
[1751781237511,6.7978,147.07,147.04,9.1639321]
[1751781237716,4.74841493,147.06,147.04,9.1639321]
[1751781237917,6.7978,147.07,147.04,9.1639321]
[1751781238117,4.74841493,147.06,147.04,9.1639321]
[1751781238312,6.7978,147.07,147.04,9.1639321]
[1751781238513,4.74863178,147.06,147.04,9.1639321]
[1751781238718,6.7978,147.07,147.04,9.1639321]
[1751781238914,4.73745294,147.06,147.04,9.1639321]
[1751781239215,6.7978,147.07,147.04,9.1639321]
[1751781239415,4.73769528,147.06,147.04,9.1639321]
[1751781239616,6.7978,147.07,147.04,9.1639321]
[1751781239815,4.73769429,147.06,147.04,9.1639321]
[1751781240015,6.7978,147.07,147.04,9.1639321]
[1751781240218,4.73769429,147.06,147.04,9.1639321]
[1751781240519,6.7978,147.07,147.04,9.1639321]
[1751781240718,4.73785749,147.06,147.04,9.1639321]
[1751781241018,6.7978,147.07,147.04,9.1639321]
[1751781241209,14.2567626,147.11,147.02,45.76]
[1751781241210,7.10294247,147.06,147.02,48.1250321]
[1751781241412,4.73791037,147.05,147.02,48.1250321]
[1751781241616,2.3650321,147.06,147.02,48.1250321]
[1751781241813,11.53704214,147.05,147.02,54.9248321]
[1751781242117,6.7989,147.05,147.02,54.9248321]
[1751781248329,6.7989,147.05,147.03,2.3650321]
[1751781251028,6.7989,147.05,147.03,9.1645321]
[1751781273746,6.7983,147.06,147.03,9.1645321]
[1751781274049,4.72091032,147.05,147.04,9.1641321]
[1751781277049,6.7981,147.07,147.04,9.1641321]
[1751781277253,4.72002381,147.06,147.05,2.3650321]
[1751781280159,4.72002381,147.06,147.04,9.1641321]
[1751781280458,4.73083209,147.05,147.04,9.1641321]
[1751781281560,6.7981,147.07,147.04,9.1641321]
[1751781281766,13.39513159,147.06,147.04,9.1641321]
[1751781282057,4.73088491,147.05,147.04,6.7991]
[1751781282357,4.73088491,147.05,147.04,9.1641321]
[1751781301671,9.1625321,147.08,147.04,9.1641321]
[1751781301971,20.55719795,147.07,147.05,2.3650321]
[1751781302170,13.3859589,147.06,147.05,2.3650321]
[1751781302470,13.3859589,147.06,147.05,9.1637321]
[1751781304972,4.73075886,147.06,147.05,9.1637321]
[1751781308273,4.73075886,147.06,147.05,6.7987]
[1751781311589,4.73075886,147.06,147.05,9.16439926]
[1751781316888,4.73075886,147.06,147.05,9.16397472]
[1751781328692,6.7969,147.09,147.06,6.7981]
[1751781328896,13.45049088,147.08,147.06,9.16337472]
[1751781329097,4.7782331,147.07,147.06,9.16337472]
[1751781329298,4.77822858,147.07,147.06,9.16337472]
[1751781331099,6.7969,147.09,147.06,9.16337472]
[1751781331303,13.45892814,147.08,147.06,9.16337472]
[1751781331494,4.77799652,147.07,147.06,9.16337472]
[1751781335500,4.77799652,147.07,147.06,6.7981]
[1751781335701,4.77799652,147.07,147.06,9.16337472]
[1751781337604,4.77799652,147.07,147.05,6.7984]
[1751781337799,6.7974,147.08,147.06,2.36527472]
[1751781338100,4.77779841,147.07,147.06,2.36527472]
[1751781341503,11.57559841,147.07,147.05,2.36527472]
[1751781341698,4.77779841,147.06,147.01,45.8]
[1751781341902,2.36527472,147.07,147.03,2.36527472]
[1751781342202,13.44075542,147.06,147.03,2.36527472]
[1751781342503,6.7984,147.06,147.03,9.16457472]
[1751781342802,6.7984,147.06,147.04,2.36527472]
[1751781343605,4.7609785,147.05,147.04,2.36527472]
[1751781345708,4.7609785,147.05,147.04,9.16437472]
[1751781347911,2.3917,147.08,147.05,6.7986]
[1751781348109,4.69507187,147.07,147.06,2.36527472]
[1751781348410,13.35670109,147.07,147.06,2.36527472]
[1751781352411,13.35670109,147.07,147.05,9.16387472]
[1751781352612,4.69507187,147.06,147.05,9.16387472]
[1751781352912,4.69507187,147.06,147.05,2.36527472]
[1751781354407,4.69507187,147.06,147.05,9.16397472]
[1751781354613,6.7974,147.08,147.05,9.16397472]
[1751781354814,13.3737937,147.07,147.06,2.36527472]
[1751781355708,4.6957545,147.07,147.06,2.36527472]
[1751781358418,6.797,147.09,147.06,2.36527472]
[1751781358615,13.37659928,147.08,147.07,2.36527472]
[1751781360120,4.69680498,147.08,147.07,2.36527472]
[1751781363323,6.797,147.09,147.07,2.36527472]
[1751781363620,7.10477472,147.11,147.06,2.36527472]
[1751781363821,22.9657315,147.1,147.06,2.36527472]
[1751781364022,20.60045678,147.09,147.06,2.36527472]
[1751781364223,6.7978,147.07,147.06,2.36527472]
[1751781364520,11.49198916,147.07,147.06,2.36527472]
[1751781364815,11.49198916,147.07,147.05,2.36527472]
[1751781365020,6.7978,147.07,147.05,2.36527472]
[1751781374231,6.7978,147.07,147.05,9.16397472]
[1751781375527,6.7974,147.08,147.05,9.16397472]
[1751781375725,4.69091508,147.07,147.05,9.16397472]
[1751781376029,6.7974,147.08,147.05,9.16397472]
[1751781376329,4.69091508,147.07,147.05,9.16397472]
[1751781376529,6.7974,147.08,147.05,9.16397472]
[1751781376732,4.69090679,147.07,147.05,9.16397472]
[1751781376932,6.7974,147.08,147.05,9.16397472]
[1751781377133,4.69090679,147.07,147.05,9.16397472]
[1751781377332,6.7974,147.08,147.05,9.16397472]
[1751781377532,4.69089871,147.07,147.05,9.16397472]
[1751781377732,6.7974,147.08,147.05,9.16397472]
[1751781377936,4.69089871,147.07,147.05,9.16397472]
[1751781378137,6.7974,147.08,147.05,9.16397472]
[1751781378435,4.69081433,147.07,147.05,9.16397472]
[1751781378632,6.7974,147.08,147.05,9.16397472]
[1751781378831,4.69089083,147.07,147.05,9.16397472]
[1751781379031,6.7974,147.08,147.05,9.16397472]
[1751781379233,4.69089082,147.07,147.05,9.16397472]
[1751781379533,6.7974,147.08,147.05,9.16397472]
[1751781379734,4.69088315,147.07,147.05,9.16397472]
[1751781379935,6.7974,147.08,147.05,9.16397472]
[1751781380127,4.69088315,147.07,147.05,9.16397472]
[1751781380330,6.7974,147.08,147.05,9.16397472]
[1751781380630,4.69087568,147.07,147.05,9.16397472]
[1751781380935,6.7974,147.08,147.05,9.16397472]
[1751781381234,4.69087568,147.07,147.05,9.16397472]
[1751781381425,6.7974,147.08,147.05,9.16397472]
[1751781381624,4.6908684,147.07,147.05,9.16397472]
[1751781381825,6.7974,147.08,147.05,9.16397472]
[1751781382025,4.6908684,147.07,147.05,9.16397472]
[1751781382226,2.36527472,147.09,147.05,2.36527472]
[1751781382425,13.37496931,147.08,147.02,45.8]
[1751781382635,4.69115552,147.07,147.03,2.36527472]
[1751781382835,9.16317472,147.07,147.03,9.16457472]
[1751781383734,6.7979,147.07,147.03,9.16457472]
[1751781383934,6.7979,147.07,147.03,6.7993]
[1751781384335,6.7979,147.07,147.04,2.36527472]
[1751781384735,9.16317472,147.07,147.04,2.36527472]
[1751781385635,9.16317472,147.07,147.04,9.16437472]
[1751781388739,6.7979,147.07,147.04,9.16437472]
[1751781392543,9.16277472,147.08,147.04,9.16437472]
[1751781392745,4.68216195,147.07,147.04,9.16437472]
[1751781392934,9.16277472,147.08,147.04,9.16437472]
[1751781393244,4.68216195,147.07,147.04,9.16437472]
[1751781393443,9.16277472,147.08,147.04,9.16437472]
[1751781393638,4.67115567,147.07,147.04,9.16437472]
[1751781393839,9.16277472,147.08,147.04,9.16437472]
[1751781394044,4.67115547,147.07,147.04,9.16437472]
[1751781394243,9.16277472,147.08,147.04,9.16437472]
[1751781394443,4.67124075,147.07,147.04,9.16437472]
[1751781394743,6.7978,147.07,147.04,9.16437472]
[1751781407257,4.67595727,147.06,147.04,9.16437472]
[1751781407458,6.7978,147.07,147.04,9.16437472]
[1751781407756,4.67597529,147.06,147.04,9.16437472]
[1751781407956,6.7978,147.07,147.04,9.16437472]
[1751781408158,4.69838037,147.06,147.04,9.16437472]
[1751781408456,6.7978,147.07,147.04,9.16437472]
[1751781408656,4.69948065,147.06,147.04,9.16437472]
[1751781408857,6.7978,147.07,147.04,9.16437472]
[1751781409053,4.69948065,147.06,147.04,9.16437472]
[1751781409357,6.7978,147.07,147.04,9.16437472]
[1751781409658,4.69949913,147.06,147.04,9.16437472]
[1751781409855,6.7978,147.07,147.04,9.16437472]
[1751781410055,4.69949913,147.06,147.04,9.16437472]
[1751781410257,6.7978,147.07,147.04,9.16437472]
[1751781410556,4.69951793,147.06,147.04,6.7991]
[1751781410856,6.7978,147.07,147.04,9.16437472]
[1751781411057,4.69951793,147.06,147.04,9.16437472]
[1751781411254,6.7978,147.07,147.04,9.16437472]
[1751781411458,4.69954044,147.06,147.04,9.16437472]
[1751781411657,6.7978,147.07,147.04,9.16437472]
[1751781411859,4.69954044,147.06,147.04,9.16437472]
[1751781412161,6.7978,147.07,147.04,9.16437472]
[1751781412360,4.69954044,147.06,147.04,9.16437472]
[1751781412560,6.7978,147.07,147.04,9.16437472]
[1751781412762,4.67715611,147.06,147.04,9.16437472]
[1751781413061,6.7978,147.07,147.04,9.16437472]
[1751781413260,4.67715611,147.06,147.04,9.16437472]
[1751781413460,6.7978,147.07,147.04,9.16437472]
[1751781413655,4.67718648,147.06,147.04,9.16437472]
[1751781413855,6.7978,147.07,147.04,9.16437472]
[1751781414055,4.67718648,147.06,147.04,9.16437472]
[1751781414256,6.7978,147.07,147.04,9.16437472]
[1751781414457,4.6772212,147.06,147.04,9.16437472]
[1751781414753,6.7978,147.07,147.04,9.16437472]
[1751781414962,4.6772212,147.06,147.04,9.16437472]
[1751781415165,6.7978,147.07,147.04,9.16437472]
[1751781415363,4.6772212,147.06,147.04,9.16437472]
[1751781415563,6.7978,147.07,147.04,9.16437472]
[1751781415766,4.67725451,147.06,147.04,9.16437472]
[1751781415963,6.7978,147.07,147.04,9.16437472]
[1751781416263,4.67725451,147.06,147.04,9.16437472]
[1751781416463,6.7978,147.07,147.04,9.16437472]
[1751781416659,4.67729218,147.06,147.04,9.16437472]
[1751781416863,6.7978,147.07,147.04,9.16437472]
[1751781417164,4.67729218,147.06,147.04,9.16437472]
[1751781417466,9.16307472,147.07,147.04,9.16437472]
[1751781417661,4.67696352,147.06,147.04,9.16437472]
[1751781417864,9.16307472,147.07,147.04,9.16437472]
[1751781418064,4.67696352,147.06,147.04,9.16437472]
[1751781418267,9.16307472,147.07,147.04,9.16437472]
[1751781418461,4.67700617,147.06,147.04,9.16437472]
[1751781418662,9.16307472,147.07,147.04,9.16437472]
[1751781418865,4.68821195,147.06,147.04,9.16437472]
[1751781419066,9.16307472,147.07,147.04,9.16437472]
[1751781419269,4.68821195,147.06,147.04,9.16437472]
[1751781419468,9.16307472,147.07,147.04,9.16437472]
[1751781419668,4.68826563,147.06,147.04,9.16437472]
[1751781419966,9.16307472,147.07,147.04,9.16437472]
[1751781420171,4.68826519,147.06,147.04,9.16437472]
[1751781420466,9.16307472,147.07,147.04,9.16437472]
[1751781420667,4.68831532,147.06,147.04,9.16437472]
[1751781420867,9.16307472,147.07,147.04,9.16437472]
[1751781421069,4.68831532,147.06,147.04,9.16437472]
[1751781421365,9.16307472,147.07,147.04,9.16437472]
[1751781421568,4.688384,147.06,147.04,9.16437472]
[1751781421769,9.16307472,147.07,147.04,9.16437472]
[1751781421970,4.688384,147.06,147.04,9.16437472]
[1751781422166,6.7978,147.07,147.04,9.16437472]
[1751781422366,4.6884625,147.06,147.04,6.7991]
[1751781422569,6.7978,147.07,147.04,6.7991]
[1751781422868,4.6884625,147.06,147.04,6.7991]
[1751781423170,6.7978,147.07,147.04,6.7991]
[1751781423370,4.6884625,147.06,147.04,6.7991]
[1751781423571,6.7978,147.07,147.04,6.7991]
[1751781423772,4.68855267,147.06,147.04,6.7991]
[1751781424072,6.7978,147.07,147.04,6.7991]
[1751781424274,4.68855267,147.06,147.04,6.7991]
[1751781424472,6.7978,147.07,147.04,6.7991]
[1751781424673,4.68866044,147.06,147.04,6.7991]
[1751781424875,6.7978,147.07,147.04,6.7991]
[1751781425075,4.68866044,147.06,147.04,6.7991]
[1751781425276,6.7978,147.07,147.04,6.7991]
[1751781425477,4.68879361,147.06,147.04,6.7991]
[1751781425676,6.7978,147.07,147.04,6.7991]
[1751781425876,4.68879361,147.06,147.04,6.7991]
[1751781426075,6.7978,147.07,147.04,6.7991]
[1751781426278,4.68859695,147.06,147.04,6.7991]
[1751781426484,6.7978,147.07,147.04,6.7991]
[1751781426671,4.68866442,147.06,147.04,6.7991]
[1751781426876,6.7978,147.07,147.04,6.7991]
[1751781427172,4.68866442,147.06,147.04,6.7991]
[1751781427377,6.7978,147.07,147.04,6.7991]
[1751781427676,4.6888734,147.06,147.04,6.7991]
[1751781427877,6.7978,147.07,147.04,6.7991]
[1751781428176,4.6888734,147.06,147.04,6.7991]
[1751781428376,6.7978,147.07,147.04,6.7991]
[1751781428580,4.68873948,147.06,147.04,6.7991]
[1751781428782,6.7978,147.07,147.04,6.7991]
[1751781429082,4.68873948,147.06,147.04,6.7991]
[1751781429285,6.7978,147.07,147.04,6.7991]
[1751781429486,4.68863129,147.06,147.04,6.7991]
[1751781429681,6.7978,147.07,147.04,6.7991]
[1751781429881,4.68863129,147.06,147.04,6.7991]
[1751781430087,6.7978,147.07,147.04,6.7991]
[1751781430288,4.68863129,147.06,147.04,6.7991]
[1751781430488,6.7978,147.07,147.04,6.7991]
[1751781430688,4.68854022,147.06,147.04,6.7991]
[1751781430985,6.7978,147.07,147.04,6.7991]
[1751781431192,4.68854022,147.06,147.04,6.7991]
[1751781431388,6.7978,147.07,147.04,6.7991]
[1751781431687,4.6884618,147.06,147.04,6.7991]
[1751781431886,6.7978,147.07,147.04,6.7991]
[1751781432083,4.6884618,147.06,147.04,6.7991]
[1751781432283,6.7978,147.07,147.04,6.7991]
[1751781432478,4.69219095,147.06,147.04,6.7991]
[1751781432683,4.69219095,147.06,147.03,2.36606992]
[1751781432684,6.7983,147.06,147.03,6.7994]
[1751781432883,4.69195533,147.05,147.03,6.7994]
[1751781433181,6.7983,147.06,147.03,6.7994]
[1751781433385,4.6914468,147.05,147.03,6.7994]
[1751781433588,6.7983,147.06,147.03,6.7994]
[1751781433788,4.69143111,147.05,147.03,6.7994]
[1751781433988,6.7983,147.06,147.03,6.7994]
[1751781434187,4.69143111,147.05,147.03,6.7994]
[1751781434487,6.7983,147.06,147.03,6.7994]
[1751781434687,4.69085942,147.05,147.03,6.7994]
[1751781434886,6.7983,147.06,147.03,6.7994]
[1751781435087,4.69085942,147.05,147.03,6.7994]
[1751781435383,6.7983,147.06,147.03,6.7994]
[1751781435688,4.69056037,147.05,147.03,6.7994]
[1751781435987,6.7983,147.06,147.03,6.7994]
[1751781436189,4.69056037,147.05,147.03,6.7994]
[1751781436386,6.7983,147.06,147.03,6.7994]
[1751781436588,4.69031051,147.05,147.03,6.7994]
[1751781436783,6.7983,147.06,147.03,6.7994]
[1751781436979,4.69031051,147.05,147.03,6.7994]
[1751781437189,6.7983,147.06,147.03,6.7994]
[1751781437388,4.6902875,147.05,147.03,6.7994]
[1751781437688,6.7983,147.06,147.03,6.7994]
[1751781437887,4.69009656,147.05,147.03,6.7996]
[1751781438187,6.7983,147.06,147.03,6.7996]
[1751781440493,6.7988,147.05,147.02,9.16586992]
[1751781440886,9.16486992,147.05,147.02,6.7998]
[1751781441089,11.48856784,147.04,147.01,6.8003]
[1751781441394,9.16546992,147.04,147.01,6.8003]
[1751781441693,9.166512,147.04,147.01,6.8003]
[1751781442793,5.09882437,147.03,147.01,6.8003]
[1751781442994,5.09882437,147.02,147.01,6.8003]
[1751781450299,9.166512,147.04,147.01,6.8003]
[1751781450502,5.07321635,147.03,147.01,6.8003]
[1751781450798,9.166512,147.04,147.01,6.8003]
[1751781451098,5.07321635,147.03,147.01,6.8003]
[1751781451297,9.166512,147.04,147.01,6.8003]
[1751781451497,5.07295049,147.03,147.01,6.8003]
[1751781451704,9.166512,147.04,147.01,6.8003]
[1751781451896,5.07273758,147.03,147.01,6.8003]
[1751781452099,9.166512,147.04,147.01,6.8003]
[1751781452396,5.07273758,147.03,147.01,6.8003]
[1751781452695,9.166512,147.04,147.01,6.8003]
[1751781452895,5.07251114,147.03,147.01,6.8003]
[1751781453099,9.166512,147.04,147.01,6.8003]
[1751781453300,5.07251114,147.03,147.01,6.8003]
[1751781453499,9.166512,147.04,147.01,6.8003]
[1751781453701,5.07210335,147.03,147.01,6.8003]
[1751781453894,9.166512,147.04,147.01,6.8003]
[1751781454099,5.07169446,147.03,147.01,6.8003]
[1751781454298,9.166512,147.04,147.01,6.8003]
[1751781454500,5.07153992,147.03,147.01,6.8003]
[1751781454797,9.166512,147.04,147.01,6.8003]
[1751781454996,5.07153992,147.03,147.01,6.8003]
[1751781455196,6.7994,147.04,147.01,6.8003]
[1751781455396,5.07152557,147.03,147.01,6.8003]
[1751781455695,9.166512,147.04,147.01,6.8003]
[1751781455895,5.07141907,147.03,147.01,6.8003]
[1751781456097,9.166512,147.04,147.01,6.8003]
[1751781456297,5.07141907,147.03,147.01,6.8003]
[1751781456500,9.166512,147.04,147.01,6.8003]
[1751781456701,5.07133086,147.03,147.01,6.8003]
[1751781456897,9.166512,147.04,147.01,6.8003]
[1751781457090,5.08229865,147.03,147.01,6.8003]
[1751781457295,9.166512,147.04,147.01,6.8003]
[1751781457496,5.0822422,147.03,147.01,6.8003]
[1751781457696,9.166512,147.04,147.01,6.8003]
[1751781457993,5.0822422,147.03,147.01,6.8003]
[1751781458196,9.166512,147.04,147.01,6.8003]
[1751781458395,5.08221723,147.03,147.01,6.8003]
[1751781458696,9.166512,147.04,147.01,9.167412]
[1751781458892,5.08221723,147.03,147.01,9.167412]
[1751781459091,9.166512,147.04,147.01,9.167412]
[1751781459296,5.08221723,147.03,147.01,9.167412]
[1751781459594,9.166512,147.04,147.01,9.167412]
[1751781459791,5.08222355,147.03,147.01,9.167412]
[1751781460096,9.166512,147.04,147.01,9.167412]
[1751781460291,5.08222355,147.03,147.01,9.167412]
[1751781460496,9.166512,147.04,147.01,9.167412]
[1751781460797,5.08226119,147.03,147.01,9.167412]
[1751781460997,9.166512,147.04,147.01,9.167412]
[1751781461200,5.08226119,147.03,147.01,9.167412]
[1751781461398,9.166512,147.04,147.01,9.167412]
[1751781461701,5.08233048,147.03,147.01,9.167412]
[1751781461901,9.166512,147.04,147.01,9.167412]
[1751781462103,5.08233048,147.03,147.01,9.167412]
[1751781462402,9.166512,147.04,147.01,9.167412]
[1751781462604,5.12086483,147.03,147.01,9.167412]
[1751781462799,5.12086483,147.02,147.01,9.167412]
[1751781471912,5.12086483,147.02,147.01,6.8003]
[1751781472115,5.12086483,147.02,147.01,9.167412]
[1751781472709,52.5779,147.07,147.01,2.367112]
[1751781472915,19.37822737,147.06,147.0,45.8]
[1751781473114,16.62630673,147.11,147.05,2.367112]
[1751781473316,21.76171415,147.1,147.07,2.367112]
[1751781473618,21.76171415,147.09,147.07,2.367112]
[1751781473812,19.37917776,147.08,147.07,2.367112]
[1751781474917,6.7968,147.09,147.07,2.367112]
[1751781475920,6.7968,147.09,147.06,9.165012]
[1751781477417,48.147112,147.12,147.08,2.367112]
[1751781477621,21.32226587,147.11,147.08,2.367112]
[1751781477813,18.93634078,147.1,147.08,2.367112]
[1751781478018,10.07982567,147.09,147.08,2.367112]
[1751781479519,4.73406811,147.09,147.08,2.367112]
[1751781480722,4.73406811,147.09,147.07,9.164612]
[1751781480917,6.7964,147.1,147.07,9.164612]
[1751781481118,4.7654775,147.09,147.07,9.164612]
[1751781481320,6.7964,147.1,147.07,9.164612]
[1751781481623,4.76459513,147.09,147.07,9.164612]
[1751781481820,2.367112,147.1,147.04,45.78]
[1751781482020,12.47589604,147.09,147.05,2.367112]
[1751781482215,2.367112,147.09,147.05,2.367112]
[1751781483524,6.7976,147.08,147.05,9.165512]
[1751781485121,2.367112,147.11,147.07,2.367112]
[1751781485327,18.99297569,147.1,147.07,2.367112]
[1751781485525,6.7968,147.1,147.07,2.367112]
[1751781485725,2.367112,147.11,147.07,2.367112]
[1751781485922,18.99144375,147.1,147.07,2.367112]
[1751781486227,2.367112,147.1,147.07,2.367112]
[1751781486429,9.163812,147.1,147.07,2.367112]
[1751781486725,9.163812,147.1,147.06,9.165012]
[1751781489828,6.7967,147.1,147.07,2.367112]
[1751781490527,6.7967,147.1,147.07,9.164812]
[1751781498137,6.7967,147.1,147.08,6.7973]
[1751781502043,6.7967,147.1,147.07,9.164612]
[1751781503547,6.7967,147.1,147.08,2.367112]
[1751781505046,6.7967,147.1,147.07,9.164612]
[1751781509751,6.7967,147.1,147.08,6.7972]
[1751781509954,6.7962,147.11,147.08,9.164312]
[1751781511252,4.7553726,147.1,147.08,9.164312]
[1751781511453,6.7962,147.11,147.08,9.164312]
[1751781511656,4.7553726,147.1,147.08,9.164312]
[1751781511953,6.7962,147.11,147.08,9.164312]
[1751781512252,4.7553726,147.1,147.08,9.164312]
[1751781512451,6.7962,147.11,147.08,9.164312]
[1751781512652,11.55271913,147.1,147.08,2.367112]
[1751781512851,6.7964,147.1,147.08,2.367112]
[1751781517255,10.13592769,147.09,147.08,2.367112]
[1751781518951,10.13592769,147.09,147.08,9.164412]
[1751781524559,10.12643815,147.09,147.08,9.164412]
[1751781524755,10.12643815,147.09,147.08,6.7973]
[1751781525969,10.11791612,147.09,147.08,6.7973]
[1751781528069,10.10831593,147.09,147.08,6.7973]
[1751781529570,10.10831593,147.09,147.07,9.164712]
[1751781529771,6.7964,147.1,147.07,9.164712]
[1751781530071,10.10955941,147.09,147.07,9.164712]
[1751781530272,6.7964,147.1,147.07,9.164712]
[1751781530471,10.10954492,147.09,147.07,9.1624758]
[1751781530675,4.75839442,147.08,147.07,9.1624758]
[1751781532572,4.75839442,147.08,147.07,9.16246218]
[1751781532874,6.7964,147.1,147.07,9.16246218]
[1751781533173,19.02422622,147.09,147.07,9.16246218]
[1751781533471,6.7964,147.1,147.07,9.16246218]
[1751781533670,19.02444149,147.09,147.07,9.16246218]
[1751781533862,6.7964,147.1,147.07,9.16246218]
[1751781534063,19.02444081,147.09,147.07,9.16246218]
[1751781534263,6.7964,147.1,147.07,9.16246218]
[1751781534567,19.02461313,147.09,147.07,9.16246218]
[1751781534762,6.7964,147.1,147.07,9.16246218]
[1751781534962,19.02461313,147.09,147.07,9.16246218]
[1751781535173,6.7964,147.1,147.07,9.16246218]
[1751781535473,19.0157028,147.09,147.07,9.16246218]
[1751781535772,6.7964,147.1,147.07,9.16246218]
[1751781535974,19.0157028,147.09,147.07,9.16246218]
[1751781536272,6.7964,147.1,147.07,9.16246218]
[1751781536468,19.01579323,147.09,147.07,9.16246218]
[1751781536668,6.7964,147.1,147.07,9.16246218]
[1751781536866,19.01579323,147.09,147.07,9.16246218]
[1751781537175,6.7964,147.1,147.07,9.16246218]
[1751781537371,19.01596752,147.09,147.07,9.16246218]
[1751781537573,4.74755929,147.08,147.07,9.16246218]
[1751781554192,4.75793076,147.08,147.07,9.16246218]
[1751781554393,6.7964,147.1,147.08,6.7973]
[1751781554588,19.0336427,147.09,147.08,6.7973]
[1751781557199,14.27547138,147.09,147.08,6.7973]